bitfinex-derivatives/quotes_BTCF0:USTF0_20241208
["timestamp","ask_amount","ask_price","bid_price","bid_amount"]
[1733680022026,0.007,99939.0,99938.0,0.79273904]
[1733680022428,0.007,99939.0,99938.0,0.49318059]
[1733680023022,0.007,99939.0,99938.0,0.51194534]
[1733680023223,0.007,99939.0,99938.0,0.49318059]
[1733680023427,0.007,99939.0,99938.0,0.51194574]
[1733680023628,0.007,99939.0,99938.0,0.49318059]
[1733680024026,7.271e-05,99940.0,99939.0,0.045002]
[1733680024222,7.271e-05,99940.0,99939.0,0.39311806]
[1733680024625,7.271e-05,99940.0,99939.0,0.49317859]
[1733680025321,7.271e-05,99940.0,99939.0,0.4900508]
[1733680025530,7.271e-05,99940.0,99939.0,0.49317766]
[1733680025822,0.00407271,99940.0,99939.0,0.87195641]
[1733680026218,0.00607271,99940.0,99939.0,0.87124233]
[1733680026418,0.00607271,99940.0,99939.0,0.51120414]
[1733680026731,0.00607271,99940.0,99939.0,0.89988671]
[1733680027119,0.08997457,99956.0,99954.0,0.044995]
[1733680027433,0.0311,99960.0,99956.0,0.044995]
[1733680027619,0.0311,99960.0,99959.0,0.044993]
[1733680027816,0.0311,99960.0,99959.0,0.05312284]
[1733680028724,0.07972854,99960.0,99959.0,0.05312198]
[1733680029331,0.07972854,99960.0,99959.0,0.15316249]
[1733680029535,0.17981844,99960.0,99959.0,0.15316249]
[1733680029841,0.05562854,99960.0,99959.0,0.15416249]
[1733680030030,0.05962854,99960.0,99959.0,0.15416249]
[1733680032630,0.05962854,99960.0,99959.0,0.05412198]
[1733680032826,0.10462154,99960.0,99959.0,0.05412198]
[1733680033222,0.28443998,99960.0,99959.0,0.05412198]
[1733680033427,0.10462154,99960.0,99959.0,0.05412198]
[1733680033819,0.21752149,99960.0,99959.0,0.00412653]
[1733680034029,0.044998,99951.0,99950.0,0.10808354]
[1733680034328,0.044998,99951.0,99950.0,0.05007738]
[1733680034524,0.09362654,99951.0,99950.0,0.05007738]
[1733680034732,0.17973984,99951.0,99950.0,0.05007738]
[1733680034926,0.04862854,99951.0,99950.0,0.05007738]
[1733680035130,0.17973984,99952.0,99950.0,0.00508038]
[1733680035332,0.17973984,99952.0,99951.0,0.044997]
[1733680035534,0.22473584,99952.0,99951.0,0.044997]
[1733680035721,0.13486508,99952.0,99951.0,0.044997]
[1733680036424,0.044996,99952.0,99951.0,0.044997]
[1733680036624,0.047996,99952.0,99951.0,0.044997]
[1733680036833,0.1378693,99952.0,99951.0,0.044997]
[1733680037030,0.1418693,99952.0,99951.0,0.044997]
[1733680037235,0.051996,99952.0,99951.0,0.044997]
[1733680037634,0.14187113,99952.0,99951.0,0.044997]
[1733680038027,0.051996,99952.0,99951.0,0.044997]
[1733680038626,0.14187295,99952.0,99951.0,0.044997]
[1733680039140,0.051996,99952.0,99951.0,0.044997]
[1733680040230,0.051996,99952.0,99951.0,0.22451477]
[1733680040631,0.051996,99952.0,99951.0,0.044997]
[1733680040835,0.051996,99952.0,99951.0,0.22451477]
[1733680041131,0.051996,99952.0,99951.0,0.044997]
[1733680042428,0.051996,99952.0,99951.0,0.05000008]
[1733680043137,0.051996,99952.0,99950.0,7.743e-05]
[1733680043138,0.044997,99951.0,99950.0,7.743e-05]
[1733680043937,0.1947788,99951.0,99950.0,7.743e-05]
[1733680044132,0.044997,99951.0,99950.0,7.743e-05]
[1733680044540,0.048997,99951.0,99950.0,7.743e-05]
[1733680045037,0.050997,99951.0,99950.0,7.743e-05]
[1733680045333,0.006,99951.0,99950.0,0.04507443]
[1733680045535,0.006,99951.0,99950.0,0.05007752]
[1733680045736,0.006,99951.0,99950.0,0.51092704]
[1733680045928,0.006,99951.0,99950.0,0.51405378]
[1733680046133,0.006,99951.0,99950.0,0.76597538]
[1733680046846,0.006,99951.0,99950.0,0.51405378]
[1733680047043,0.006,99951.0,99950.0,0.5265603]
[1733680047231,0.006,99951.0,99950.0,0.76567592]
[1733680047433,0.006,99951.0,99950.0,0.5265603]
[1733680048439,0.006,99951.0,99950.0,0.54521618]
[1733680049547,0.006,99951.0,99950.0,0.54021309]
[1733680050046,0.006,99951.0,99950.0,0.52155721]
[1733680050445,0.006,99951.0,99950.0,0.53167]
[1733680052139,0.006,99951.0,99950.0,0.53166969]
[1733680052359,0.1258224,99951.0,99950.0,0.53166969]
[1733680052541,0.006,99951.0,99950.0,0.53166969]
[1733680052943,0.1258224,99951.0,99950.0,0.53166969]
[1733680053145,0.006,99951.0,99950.0,0.53166969]
[1733680053544,0.002,99951.0,99950.0,0.53166969]
[1733680053849,0.1198224,99952.0,99951.0,0.044997]
[1733680054146,0.1497818,99959.0,99952.0,0.044996]
[1733680054444,0.1497818,99959.0,99958.0,0.3608]
[1733680054841,0.1497818,99959.0,99958.0,0.36392628]
[1733680055047,0.1497818,99959.0,99958.0,0.47335103]
[1733680055238,0.1497818,99959.0,99958.0,0.46084451]
[1733680055946,0.1497818,99959.0,99958.0,0.50583851]
[1733680056148,0.1497818,99960.0,99959.0,0.044993]
[1733680056539,0.17973984,99967.0,99966.0,0.04499]
[1733680057043,0.228365,99968.0,99958.0,0.407794]
[1733680057238,0.1497253,99960.0,99959.0,0.044993]
[1733680057438,0.1497253,99960.0,99959.0,0.14503351]
[1733680057640,0.1497253,99960.0,99959.0,0.14603351]
[1733680058044,0.1497253,99960.0,99959.0,0.16166502]
[1733680058739,0.08983068,99966.0,99959.0,0.3557391]
[1733680058943,0.08983068,99966.0,99965.0,0.17919204]
[1733680059139,0.08983068,99966.0,99965.0,0.18231834]
[1733680059538,0.08983068,99966.0,99965.0,0.28235285]
[1733680059739,0.08983068,99966.0,99965.0,0.10316081]
[1733680059943,0.08983068,99966.0,99965.0,0.32734385]
[1733680060449,0.09183068,99966.0,99965.0,0.32734385]
[1733680060845,0.09183068,99966.0,99965.0,0.14815181]
[1733680060846,0.002,99966.0,99965.0,0.14815181]
[1733680061051,0.003,99966.0,99965.0,0.14815181]
[1733680063848,0.003,99966.0,99965.0,0.14502551]
[1733680064044,0.003,99966.0,99965.0,0.14815183]
[1733680065449,0.003,99966.0,99965.0,0.14815184]
[1733680066050,0.0516254,99966.0,99965.0,0.14815184]
[1733680066349,0.0516254,99966.0,99965.0,0.15828975]
[1733680067447,0.0516254,99966.0,99965.0,0.15516342]
[1733680067655,0.0516254,99966.0,99965.0,0.15828974]
[1733680072951,0.0516254,99966.0,99965.0,0.15516342]
[1733680073254,0.0516254,99966.0,99965.0,0.15828975]
[1733680073451,0.0516254,99966.0,99965.0,0.16329187]
[1733680073849,0.003,99966.0,99965.0,0.16329187]
[1733680074756,0.003,99966.0,99965.0,0.34248391]
[1733680074952,0.003,99966.0,99965.0,0.16329187]
[1733680078054,0.003,99966.0,99965.0,0.40235895]
[1733680078454,0.003,99966.0,99965.0,0.16329187]
[1733680078754,0.003,99966.0,99965.0,0.40235895]
[1733680079154,0.003,99966.0,99965.0,0.3973568]
[1733680079360,0.003,99966.0,99965.0,0.40235888]
[1733680080058,0.003,99966.0,99965.0,0.1632918]
[1733680080355,0.003,99966.0,99965.0,0.15828972]
[1733680081551,0.001,99966.0,99965.0,0.16128972]
[1733680081752,0.076989,99969.0,99965.0,0.10716081]
[1733680081954,0.076989,99969.0,99968.0,0.28439547]
[1733680082159,0.076989,99969.0,99968.0,0.28752177]
[1733680082759,0.076989,99969.0,99968.0,0.28754005]
[1733680083665,0.076989,99969.0,99968.0,0.0481153]
[1733680083866,0.076989,99969.0,99968.0,0.28754005]
[1733680084165,0.076989,99969.0,99968.0,0.0481153]
[1733680084467,0.076989,99969.0,99968.0,0.0501153]
[1733680084659,0.076989,99969.0,99968.0,0.28954005]
[1733680084967,0.14977557,99978.0,99970.0,0.044988]
[1733680085163,0.63944405,100000.0,99975.0,0.044986]
[1733680085164,0.12000907,99976.0,99975.0,0.044986]
[1733680085466,0.12000261,99978.0,99977.0,0.044985]
[1733680085666,0.12000261,99983.0,99979.0,0.044984]
[1733680085868,0.08994956,99985.0,99979.0,0.37937447]
[1733680086163,0.12000261,99994.0,99979.0,1.11680302]
[1733680086360,0.22052262,100000.0,99999.0,0.044975]
[1733680086565,0.22000261,100000.0,99999.0,0.68374558]
[1733680086761,0.1,100000.0,99999.0,0.06560389]
[1733680086963,0.67117818,100020.0,99999.0,0.12064239]
[1733680087155,0.63057818,100020.0,100010.0,0.35022475]
[1733680087353,0.63057818,100020.0,100010.0,0.37085364]
[1733680087556,0.63117819,100030.0,100020.0,0.044966]
[1733680087756,0.63057818,100030.0,100020.0,0.17926422]
[1733680087954,0.48080261,100030.0,100020.0,0.17926422]
[1733680088356,0.48080261,100030.0,100020.0,0.27112408]
[1733680088759,0.52776361,100030.0,100020.0,0.27112408]
[1733680088959,0.54253984,100030.0,100020.0,0.27112408]
[1733680090464,0.54653984,100030.0,100020.0,0.27112408]
[1733680090673,0.69561016,100030.0,100020.0,0.27112408]
[1733680092074,0.51587032,100030.0,100020.0,0.27112408]
[1733680093165,0.63501307,100030.0,100020.0,0.27112408]
[1733680093366,0.67997407,100030.0,100020.0,0.144951]
[1733680093567,0.67997407,100030.0,100020.0,0.20803754]
[1733680095175,0.67997407,100030.0,100020.0,0.144951]
[1733680095176,0.74306061,100030.0,100020.0,0.144951]
[1733680095577,0.67997407,100030.0,100020.0,0.20803754]
[1733680096078,0.411761,100030.0,100020.0,0.20803754]
[1733680097077,0.411761,100030.0,100020.0,0.10805254]
[1733680097267,0.47484754,100030.0,100010.0,0.00988694]
[1733680097472,0.47484754,100030.0,100010.0,0.11794348]
[1733680097473,0.405766,100020.0,100010.0,0.11794348]
[1733680098374,0.436566,100020.0,100010.0,0.04506641]
[1733680098577,0.436566,100020.0,100010.0,0.10915295]
[1733680098772,0.49965254,100020.0,100010.0,0.04606641]
[1733680099369,0.436566,100020.0,100010.0,0.04606641]
[1733680099574,0.49965254,100020.0,100010.0,0.04606641]
[1733680099777,0.56273908,100020.0,100010.0,0.00109641]
[1733680100078,0.49965254,100020.0,100010.0,0.00109641]
[1733680101477,0.59553908,100020.0,100010.0,0.00109641]
[1733680101775,1.02451245,100020.0,100010.0,0.00109641]
[1733680102375,1.20378277,100020.0,100010.0,0.00109641]
[1733680102584,1.20378277,100020.0,99998.0,0.01]
[1733680102880,1.20378277,100020.0,99995.0,0.01001999]
[1733680102881,0.044977,99996.0,99995.0,0.01001999]
[1733680103077,0.044978,99992.0,99991.0,0.044979]
[1733680104484,0.044978,99992.0,99991.0,0.045979]
[1733680106881,0.044978,99992.0,99991.0,0.049979]
[1733680107980,0.3608,99999.0,99996.0,0.044976]
[1733680108186,0.044976,99997.0,99996.0,0.044976]
[1733680109472,0.044978,99992.0,99991.0,0.005]
[1733680109685,0.044978,99992.0,99991.0,0.00712562]
[1733680109879,0.044978,99992.0,99991.0,0.004]
[1733680110687,0.044979,99991.0,99990.0,0.04509309]
[1733680110875,0.044979,99991.0,99990.0,0.04821875]
[1733680111194,0.044979,99991.0,99990.0,0.04509309]
[1733680111389,0.044979,99991.0,99990.0,0.04821877]
[1733680111683,0.044979,99991.0,99990.0,0.04821878]
[1733680112074,0.044979,99991.0,99990.0,0.05321878]
[1733680113184,0.044979,99991.0,99990.0,0.05521878]
[1733680114179,0.044979,99991.0,99990.0,0.0602199]
[1733680115082,0.044979,99991.0,99990.0,0.06022001]
[1733680117787,0.044979,99991.0,99990.0,0.01524101]
[1733680118083,0.044979,99991.0,99990.0,0.01023983]
[1733680118491,0.044979,99991.0,99990.0,0.00711409]
[1733680121883,0.09360225,99991.0,99990.0,0.00711409]
[1733680123085,0.27334209,99991.0,99990.0,0.00711409]
[1733680123690,0.27294384,99991.0,99990.0,0.00711409]
[1733680124083,0.09360453,99991.0,99990.0,0.00711409]
[1733680124281,0.044986,99976.0,99969.0,0.01]
[1733680124485,0.044986,99976.0,99975.0,0.00150018]
[1733680125486,0.044986,99976.0,99975.0,0.00812644]
[1733680125686,0.19443621,99976.0,99970.0,7.356e-05]
[1733680125997,0.044988,99971.0,99970.0,7.356e-05]
[1733680127582,0.052988,99971.0,99970.0,7.356e-05]
[1733680127782,0.17254727,99971.0,99970.0,7.356e-05]
[1733680127992,0.052988,99971.0,99970.0,7.356e-05]
[1733680128192,0.052988,99971.0,99970.0,0.00320017]
[1733680128590,0.057988,99971.0,99970.0,7.356e-05]
[1733680128791,0.057988,99971.0,99970.0,0.00320007]
[1733680130491,0.057988,99971.0,99970.0,0.03500007]
[1733680131802,0.057988,99971.0,99970.0,0.07998807]
[1733680135399,0.057988,99971.0,99970.0,0.07998806]
[1733680140398,0.053988,99971.0,99970.0,0.07998806]
[1733680140793,0.045988,99971.0,99970.0,0.07998806]
[1733680141592,0.044988,99971.0,99970.0,0.08498806]
[1733680143311,0.044988,99971.0,99970.0,0.08398806]
[1733680143512,0.045988,99971.0,99970.0,0.08398806]
[1733680144710,0.045988,99971.0,99970.0,0.07998806]
[1733680146310,0.045988,99971.0,99970.0,0.08499041]
[1733680146505,0.16554727,99971.0,99970.0,0.08499041]
[1733680147304,0.045988,99971.0,99970.0,0.08499041]
[1733680148613,0.16577333,99971.0,99970.0,0.08499041]
[1733680149508,0.045988,99971.0,99970.0,0.26397567]
[1733680150224,0.045988,99971.0,99970.0,0.23217567]
[1733680150418,0.045988,99971.0,99970.0,0.18718767]
[1733680150619,0.045988,99971.0,99970.0,0.00820241]
[1733680156028,0.09461545,99971.0,99970.0,0.00820241]
[1733680158131,0.12661545,99971.0,99970.0,0.00820243]
[1733680158328,0.3381557,99971.0,99970.0,0.00820243]
[1733680158633,0.18981545,99971.0,99970.0,0.00820243]
[1733680159133,0.044992,99961.0,99960.0,0.17983196]
[1733680159429,0.044994,99958.0,99957.0,0.17983196]
[1733680159635,0.3608,99961.0,99955.0,0.17983196]
[1733680159636,0.044995,99956.0,99955.0,0.17983196]
[1733680159929,0.04862745,99959.0,99951.0,0.17983196]
[1733680160119,0.3608,99961.0,99950.0,0.00011013]
[1733680160120,0.19496098,99952.0,99950.0,0.00011013]
[1733680160322,0.19496198,99951.0,99950.0,0.00011013]
[1733680160522,0.125234,99951.0,99950.0,0.00011013]
[1733680160718,0.189734,99951.0,99950.0,0.00011013]
[1733680160928,0.29808138,99951.0,99950.0,0.00011013]
[1733680161131,0.189734,99951.0,99950.0,0.00011013]
[1733680161529,0.189734,99951.0,99934.0,0.01150087]
[1733680161530,0.29744462,99951.0,99934.0,0.01150087]
[1733680161742,0.045004,99935.0,99934.0,0.00150087]
[1733680162830,0.16480254,99935.0,99934.0,0.00750087]
[1733680163021,0.045004,99935.0,99934.0,0.00750087]
[1733680163623,0.045004,99935.0,99934.0,0.00550087]
[1733680163823,0.045004,99935.0,99934.0,0.00750087]
[1733680164227,0.046004,99935.0,99934.0,0.00750087]
[1733680166536,0.05616835,99935.0,99934.0,0.00750087]
[1733680167433,0.046004,99935.0,99934.0,0.00750087]
[1733680168333,0.01,99956.0,99934.0,0.28749919]
[1733680168526,0.11979854,99959.0,99934.0,0.28749919]
[1733680168527,0.045001,99942.0,99940.0,0.405802]
[1733680169147,0.045001,99942.0,99941.0,0.10506044]
[1733680169442,0.044998,99948.0,99944.0,0.045]
[1733680169640,0.044999,99947.0,99946.0,0.044999]
[1733680171035,0.044999,99947.0,99946.0,0.04812608]
[1733680171233,0.044999,99947.0,99946.0,0.05012608]
[1733680172031,0.044996,99952.0,99950.0,0.044997]
[1733680172234,0.044996,99952.0,99951.0,0.00312708]
[1733680173341,0.001,99952.0,99951.0,0.00312708]
[1733680173541,0.001,99952.0,99951.0,0.00813012]
[1733680174444,0.001,99952.0,99951.0,0.10004852]
[1733680174740,0.001,99952.0,99951.0,0.10817796]
[1733680175044,0.001,99952.0,99951.0,0.30061744]
[1733680175239,0.001,99952.0,99951.0,0.12568466]
[1733680175432,0.001,99952.0,99951.0,0.3050493]
[1733680175639,0.002,99952.0,99951.0,0.3050493]
[1733680176246,0.001,99952.0,99951.0,0.3050493]
[1733680176438,0.001,99952.0,99951.0,0.2945426]
[1733680177349,0.044995,99956.0,99954.0,0.044995]
[1733680177645,0.044995,99956.0,99955.0,0.00812944]
[1733680177838,0.044995,99956.0,99955.0,0.00312671]
[1733680178440,0.044995,99956.0,99954.0,0.044995]
[1733680178650,0.044995,99956.0,99954.0,0.047995]
[1733680179140,0.044995,99956.0,99955.0,0.002]
[1733680179742,0.14984366,99972.0,99971.0,0.044988]
[1733680179943,0.3608,99994.0,99979.0,0.044984]
[1733680179944,0.14984366,99987.0,99979.0,0.044984]
[1733680180143,0.14984366,99995.0,99979.0,0.405784]
[1733680180343,0.1798124,100000.0,99979.0,0.50582851]
[1733680180344,0.14984366,99996.0,99979.0,0.50582851]
[1733680181143,0.19481966,99998.0,99979.0,0.50582851]
[1733680181444,0.00812364,99980.0,99979.0,0.50995408]
[1733680182148,0.00812364,99980.0,99979.0,0.52245308]
[1733680182449,0.00412364,99980.0,99979.0,0.52145308]
[1733680183151,0.00712364,99980.0,99979.0,0.50582851]
[1733680183347,0.00712364,99980.0,99979.0,0.52145438]
[1733680183654,0.00712364,99980.0,99979.0,0.52144611]
[1733680185756,0.00712364,99980.0,99979.0,0.52142907]
[1733680186050,0.00712364,99980.0,99979.0,0.50582851]
[1733680186354,0.00712364,99980.0,99979.0,0.52142763]
[1733680188152,0.044975,99999.0,99998.0,0.044976]
[1733680189144,0.044975,99999.0,99998.0,0.045976]
[1733680189145,0.052975,99999.0,99998.0,0.045976]
[1733680189350,0.057975,99999.0,99998.0,0.045976]
[1733680189759,0.06779836,99999.0,99998.0,0.045976]
[1733680191655,0.09789836,99999.0,99998.0,0.045976]
[1733680192360,0.12799836,99999.0,99998.0,0.045976]
[1733680192557,0.013,99999.0,99998.0,0.045976]
[1733680192859,0.013,99999.0,99998.0,0.15840383]
[1733680193156,0.00889942,99999.0,99998.0,0.15840383]
[1733680195354,0.001,99999.0,99998.0,0.15740383]
[1733680195555,0.001,99999.0,99998.0,0.16855226]
[1733680195953,0.001,99999.0,99998.0,0.15612593]
[1733680196153,0.001,99999.0,99998.0,0.16853465]
[1733680197162,9.949e-05,100010.0,100000.0,0.04508032]
[1733680197360,0.04506949,100010.0,100000.0,0.05748904]
[1733680197758,0.04506949,100010.0,100000.0,0.14508182]
[1733680198350,0.07666949,100010.0,100000.0,0.14508182]
[1733680198753,0.07666949,100010.0,100000.0,0.04508032]
[1733680198954,0.58731315,100010.0,100000.0,0.04508032]
[1733680199257,0.76712555,100010.0,100000.0,0.04508032]
[1733680200358,0.76712555,100010.0,100000.0,0.00010532]
[1733680200554,0.61728189,100010.0,100000.0,0.00010532]
[1733680201367,0.43746949,100010.0,100000.0,0.00010532]
[1733680204366,0.58654774,100010.0,100000.0,0.00010532]
[1733680207564,0.58654774,100010.0,100000.0,0.00323109]
[1733680207769,0.58654774,100010.0,100000.0,0.00323107]
[1733680208163,0.76636014,100010.0,100000.0,0.00323107]
[1733680208355,0.43746949,100010.0,100000.0,0.00010532]
[1733680209069,0.64725329,100010.0,100000.0,0.00010532]
[1733680211455,0.67965329,100010.0,100000.0,0.00010532]
[1733680212363,0.71275329,100010.0,100000.0,0.00010532]
[1733680215670,0.04498,99988.0,99987.0,0.01]
[1733680215871,0.04498,99988.0,99970.0,0.24014738]
[1733680215872,0.044987,99972.0,99971.0,0.054988]
[1733680216070,0.044987,99972.0,99971.0,0.07960908]
[1733680216267,0.08980075,99984.0,99971.0,0.04811404]
[1733680216576,0.044986,99974.0,99973.0,0.17951454]
[1733680216873,0.044986,99974.0,99973.0,0.18264089]
[1733680217262,0.044986,99974.0,99973.0,0.00312635]
[1733680218574,0.044986,99974.0,99973.0,0.00312645]
[1733680218977,0.045986,99974.0,99973.0,0.01212645]
[1733680219176,0.045986,99974.0,99973.0,0.01612645]
[1733680222367,0.0561717,99974.0,99973.0,0.01612645]
[1733680222868,0.0561717,99974.0,99973.0,0.013]
[1733680223072,0.0561717,99974.0,99973.0,0.01612645]
[1733680223375,0.0561717,99974.0,99973.0,0.013]
[1733680226275,0.0561717,99974.0,99973.0,0.01612646]
[1733680226575,0.0561717,99974.0,99973.0,0.013]
[1733680233270,0.20586848,99974.0,99973.0,0.013]
[1733680233477,0.10480016,99974.0,99973.0,0.013]
[1733680236980,0.10380016,99974.0,99973.0,0.004]
[1733680237180,0.10380016,99974.0,99973.0,0.011]
[1733680237181,0.10480016,99974.0,99973.0,0.011]
[1733680237990,0.10480016,99974.0,99973.0,0.007]
[1733680238181,0.10480009,99974.0,99973.0,0.009]
[1733680238378,0.0561717,99974.0,99973.0,0.009]
[1733680241184,0.17583957,99974.0,99973.0,0.009]
[1733680242290,0.0561717,99974.0,99973.0,0.009]
[1733680243185,0.1048026,99974.0,99973.0,0.009]
[1733680243384,0.1048026,99974.0,99970.0,8.426e-05]
[1733680243586,0.1048026,99974.0,99970.0,2.6e-07]
[1733680243587,0.044988,99971.0,99970.0,2.6e-07]
[1733680243783,0.0936189,99971.0,99970.0,2.6e-07]
[1733680244486,0.354988,99971.0,99970.0,2.6e-07]
[1733680244678,0.50894706,99971.0,99970.0,2.6e-07]
[1733680245083,0.51394706,99971.0,99970.0,2.6e-07]
[1733680245290,0.20394706,99971.0,99970.0,2.6e-07]
[1733680247086,0.0986189,99971.0,99970.0,2.6e-07]
[1733680247395,0.1066189,99971.0,99970.0,2.6e-07]
[1733680248387,0.057988,99971.0,99970.0,2.6e-07]
[1733680248588,0.10662093,99971.0,99970.0,2.6e-07]
[1733680252785,0.126296,99971.0,99970.0,2.6e-07]
[1733680253185,0.12629459,99971.0,99970.0,2.6e-07]
[1733680253693,0.23340233,99971.0,99970.0,2.6e-07]
[1733680253996,0.59420233,99971.0,99970.0,2.6e-07]
[1733680259693,0.80398613,99971.0,99970.0,2.6e-07]
[1733680260194,0.71833787,99971.0,99970.0,2.6e-07]
[1733680261402,0.48709459,99971.0,99970.0,2.6e-07]
[1733680263902,0.66689513,99971.0,99970.0,2.6e-07]
[1733680264197,0.48709459,99971.0,99970.0,2.6e-07]
[1733680265998,0.48709445,99971.0,99970.0,2.6e-07]
[1733680266217,0.48709445,99971.0,99970.0,0.00312696]
[1733680266703,0.48709445,99971.0,99970.0,2.6e-07]
[1733680268392,0.5949183,99971.0,99970.0,0.003127]
[1733680268894,0.5949183,99971.0,99970.0,2.6e-07]
[1733680269295,0.42243138,99971.0,99970.0,0.04498826]
[1733680269495,0.42243138,99971.0,99970.0,0.04811472]
[1733680270299,0.06163138,99971.0,99970.0,0.04811472]
[1733680270698,0.05663138,99971.0,99970.0,0.04811446]
[1733680270904,0.10461938,99971.0,99970.0,0.04811446]
[1733680271498,0.10461938,99971.0,99970.0,0.00312646]
[1733680271695,0.10161938,99971.0,99970.0,0.00312646]
[1733680271891,0.23283793,99971.0,99970.0,0.00312646]
[1733680272104,0.044989,99968.0,99964.0,0.044991]
[1733680272310,0.04863138,99967.0,99965.0,0.00312641]
[1733680272501,0.04863138,99967.0,99966.0,0.00312641]
[1733680273391,0.05163138,99967.0,99966.0,0.00312641]
[1733680273603,0.09662138,99967.0,99966.0,0.00312641]
[1733680274601,0.09962138,99967.0,99966.0,0.00312641]
[1733680275506,0.09962138,99967.0,99966.0,0.04811641]
[1733680275706,0.09962138,99967.0,99966.0,0.05311888]
[1733680276498,0.05099,99967.0,99966.0,0.05311888]
[1733680277411,0.04799,99967.0,99966.0,0.05311888]
[1733680277610,0.04899,99967.0,99966.0,0.05311888]
[1733680278304,0.04599,99967.0,99966.0,0.05411888]
[1733680278899,0.04499,99967.0,99966.0,0.05411888]
[1733680279209,0.04599,99967.0,99966.0,0.05411888]
[1733680279603,0.04599,99967.0,99966.0,0.04599]
[1733680279811,0.04599,99967.0,99966.0,0.05411899]
[1733680281807,0.04599,99967.0,99966.0,0.23358822]
[1733680282405,0.04599,99967.0,99966.0,0.05411899]
[1733680282813,0.04599,99967.0,99966.0,0.23357907]
[1733680283411,0.09461833,99967.0,99966.0,0.05411899]
[1733680283809,0.09461833,99967.0,99966.0,0.04911653]
[1733680284505,0.09461833,99967.0,99966.0,0.00412653]
[1733680285012,0.09461891,99967.0,99966.0,0.00412653]
[1733680286213,0.09461891,99967.0,99966.0,0.001]
[1733680286414,0.09461891,99967.0,99966.0,0.00412656]
[1733680286908,0.09461891,99967.0,99966.0,0.001]
[1733680287410,0.20288313,99967.0,99966.0,0.001]
[1733680287914,0.56368313,99967.0,99966.0,0.001]
[1733680288211,0.57374024,99967.0,99966.0,0.001]
[1733680288617,0.57318475,99967.0,99966.0,0.001]
[1733680289520,0.57321027,99967.0,99966.0,0.001]
[1733680290918,0.57321027,99967.0,99966.0,0.00412691]
[1733680291511,0.46548229,99967.0,99966.0,0.00412691]
[1733680294308,0.46548178,99967.0,99966.0,0.00412691]
[1733680297717,0.4654818,99967.0,99966.0,0.00412691]
[1733680298421,0.57368586,99967.0,99966.0,0.00412691]
[1733680298920,0.57368586,99967.0,99966.0,0.001]
[1733680303118,0.51863875,99967.0,99966.0,0.04599]
[1733680304623,0.04963469,99967.0,99966.0,0.05411881]
[1733680304933,0.001,99967.0,99966.0,0.05411881]
[1733680305225,0.001,99967.0,99966.0,0.15415232]
[1733680306228,0.14984266,99971.0,99966.0,0.15415232]
[1733680306423,0.08986194,99976.0,99970.0,0.23937793]
[1733680306735,0.08986194,99976.0,99975.0,0.044986]
[1733680307326,0.08986194,99976.0,99975.0,0.04998776]
[1733680307622,0.08986194,99977.0,99975.0,0.05311386]
[1733680307834,0.08986194,99977.0,99976.0,0.00812786]
[1733680308025,0.08986194,99978.0,99977.0,0.044985]
[1733680308229,0.08986194,99978.0,99977.0,0.05311286]
[1733680308522,0.044983,99981.0,99977.0,0.05311286]
[1733680308523,0.08986194,99979.0,99977.0,0.05311286]
[1733680308729,0.08986194,99979.0,99978.0,0.00812786]
[1733680309524,0.08986194,99979.0,99978.0,0.05311286]
[1733680309827,0.09386194,99979.0,99978.0,0.00812786]
[1733680310031,0.004,99979.0,99978.0,0.00812786]
[1733680310635,0.09679667,99979.0,99978.0,0.00812786]
[1733680311433,0.007,99979.0,99978.0,0.00812786]
[1733680312023,0.051984,99979.0,99978.0,0.00812791]
[1733680312635,0.14178067,99979.0,99978.0,0.00812791]
[1733680313024,0.051984,99979.0,99978.0,0.00812791]
[1733680313527,0.051984,99979.0,99978.0,0.00312612]
[1733680313937,0.007,99979.0,99978.0,0.00312612]
[1733680314433,0.007,99979.0,99977.0,0.044985]
[1733680314630,0.007,99979.0,99978.0,0.00312608]
[1733680315338,0.007,99979.0,99978.0,0.00812759]
[1733680317834,0.007,99979.0,99978.0,0.00812742]
[1733680320529,0.15684266,99979.0,99978.0,0.00812742]
[1733680320731,0.007,99979.0,99978.0,0.00812742]
[1733680320935,0.007,99979.0,99978.0,0.0180921]
[1733680320936,0.15649061,99979.0,99978.0,0.0180921]
[1733680321141,0.15649061,99979.0,99978.0,0.00812742]
[1733680321330,0.15649061,99979.0,99977.0,0.405785]
[1733680321534,0.007,99979.0,99978.0,0.10314745]
[1733680321729,0.007,99979.0,99978.0,0.14795029]
[1733680321934,0.12658245,99979.0,99978.0,0.18435126]
[1733680322131,0.007,99979.0,99978.0,0.18435126]
[1733680322331,0.0956666,99979.0,99978.0,0.18435126]
[1733680323234,0.0926666,99979.0,99978.0,0.18435126]
[1733680323433,0.0926666,99979.0,99978.0,0.18735126]
[1733680324138,0.003,99979.0,99978.0,0.18735033]
[1733680324536,0.004,99979.0,99978.0,0.23233533]
[1733680324732,0.0936518,99979.0,99978.0,0.23233533]
[1733680325130,0.0906518,99979.0,99978.0,0.23533533]
[1733680326935,0.001,99979.0,99978.0,0.23533533]
[1733680327543,0.0906518,99979.0,99978.0,0.23533533]
[1733680328636,0.001,99979.0,99978.0,0.23533533]
[1733680329442,0.001,99979.0,99978.0,0.20393533]
[1733680330651,0.001,99979.0,99978.0,0.41037973]
[1733680330946,0.044981,99986.0,99978.0,0.12365101]
[1733680331146,0.001,99979.0,99978.0,0.1510065]
[1733680331350,0.001,99979.0,99978.0,0.17163616]
[1733680331649,0.001,99979.0,99978.0,0.16963616]
[1733680332040,0.044982,99985.0,99978.0,0.16663616]
[1733680332243,0.044982,99985.0,99984.0,0.044982]
[1733680332443,0.044982,99985.0,99984.0,0.05310883]
[1733680333751,0.0312,99988.0,99987.0,0.044981]
[1733680333945,0.0312,99988.0,99987.0,0.05310783]
[1733680334544,0.0312,99988.0,99987.0,0.23226337]
[1733680335143,0.0312,99988.0,99987.0,0.23326337]
[1733680335336,0.0312,99988.0,99987.0,0.23426337]
[1733680335647,0.0312,99988.0,99987.0,0.05510777]
[1733680335947,0.0322,99988.0,99987.0,0.05410777]
[1733680336844,0.0322,99988.0,99987.0,0.05410767]
[1733680336845,0.07718,99988.0,99987.0,0.05410767]
[1733680337741,0.07718,99988.0,99987.0,0.23341421]
[1733680337941,0.07718,99988.0,99987.0,0.05410767]
[1733680338143,0.07718,99988.0,99987.0,0.001]
[1733680338336,0.07718,99988.0,99965.0,0.7204669]
[1733680338337,0.07718,99988.0,99982.0,0.044983]